Workbook

Sheet Intro
B3: KSU-Buy/Sell (Calf-Yearling)
B5: An Excel spreadsheet for calculating breakeven cattle prices between the calf and yearling stages
L8: Version- 10.13.2015
B28: INTRODUCTION
B29: A spreadsheet program to calculate the maximum price that can be paid for calves given an expected yearling selling price and cost of gain. Additionally, this program also calculates the breakeven yearling selling price needed given a calf purchase price and an estimated cost of gain.
B31: INSTRUCTIONS FOR THE USER:
B32: Be sure to "Enable Content" and "Enable Macros" for the spreadsheet to function correctly.
B33: In the Sell and Buy sheets all blue numbers are inputs and all black numbers are calculated from these inputs. The spreadsheet automatically recalculates every time an additional input is entered. Thus, it is important to wait until all data have been entered and reviewed before interpreting any of the calculated results (i.e., black numbers).
B40: FOR MORE INFORMATION:
B41: Links to supporting materials:
C42: www.agmanager.info/livestock/marketing/ | I42: www.BeefBasis.com
B43: Updated and Expanded by:
B45: Glynn T. Tonsor, Ph.D. | H45: Brian Highfill
B46: Agricultural Economist | H46: Graduate Research Assistant
B47: Department of Agricultural Economics | H47: Kansas State University
B48: Kansas State University
B49: gtonsor@k-state.edu
B50: 785-532-1518
B52: ACKNOWLEDGEMENTS:
B53: This spreadsheet was originally developed by Kevin Dhuyvetter, Ph.D., Agricultural Economist, Kanasas State University
B55: Copyright 2016 AgManager.info, K-State Department of Agricultural Economics

Sheet Sell
B2: Breakeven Selling Price Worksheet | H2: (Blue values in shaded cells are inputs to be entered)
B4: Purchase weight (lbs) | H4: 525
B5: Purchase price ($/cwt) | H5: 205 | N5: =IF(H5<1," Enter purchase price as $/Cwt.!"," ") -> 
B6: Purchase date (mm/dd/yy) | H6: =NOW() -> 2016-07-28T15:37:08.290
B7: Average Daily Gain (pay-to-pay) | H7: 2.15 | K7: Increments to use in tables below
B8: Feeding cost of gain ($/cwt) | H8: 85 | K8: Selling Weight (lbs) | N8: 25
B9: Interest rate on feeder and feeding cost of gain | H9: 0.07 | K9: Purchase Price ($/cwt) | N9: 5
B10: Percent death loss* | H10: 0.018 | K10: Feeding Cost of Gain ($/cwt) | N10: 5
B11: Costs per head (trucking, vaccines, backgrounding, etc.)** | H11: 20
B12: Desired profit per head | H12: 0
B13: * Enter ONLY if death loss is NOT included in feeding cost of gain, otherwise enter zero.
B14: ** Do not enter any costs included in feeding cost of gain.
C17: Expected sale date | D17: Relevant futures price | E17: Expected basis* | F17: Expected cash price | H17: Purchase Price ($/cwt) | Z17: Selling | AA17: Adj.
B18: Selling | H18: =I18-$N9 -> 190 | I18: =J18-$N9 -> 195 | J18: =K18-$N9 -> 200 | K18: =H5 -> 205 | L18: =K18+$N9 -> 210 | M18: =L18+$N9 -> 215 | N18: =M18+$N9 -> 220 | X18: Days | Y18: Gain | Z18: Weight | AA18: Gain
B19: Weight1 | H19: Breakeven Selling Price ($/cwt)2
B20: =H4+75 -> 600 | C20: =H$6+X20 -> 2016-09-01T12:49:41.778 | D20: 176.275 | E20: 8.1 | F20: =D20+E20 -> 184.375 | H20: =IF($B20<=$H$4," N/A",((H$18/100*$H$4)*(1+$H$9*$X20/365)+(($H$8/100*$AA20)+$H$11)*(1+$H$9/2*$X20/365)+$H$12)/$Z20*100) -> 183.1284354 | I20: 187.6134342 | J20: 192.0984331 | K20: 196.583432 | L20: 201.0684308 | M20: 205.5534297 | N20: 210.0384285 | X20: =(B20-$H$4)/$H$7 -> 34.88372093 | Y20: =B20-H$4 -> 75 | Z20: =B20*(1-H$10) -> 589.2 | AA20: =Z20-H$4 -> 64.2
B21: =B20+N$8 -> 625 | C21: =H$6+X21 -> 2016-09-13T03:53:52.941 | D21: 176.275 | E21: 5.91 | F21: =D21+E21 -> 182.185 | H21: 179.5944426 | I21: 183.9095792 | J21: 188.2247158 | K21: 192.5398524 | L21: 196.854989 | M21: 201.1701257 | N21: 205.4852623 | X21: 46.51162791 | Y21: 100 | Z21: 613.75 | AA21: 88.75
B22: 650 | C22: 2016-09-24T18:58:04.104 | D22: 176.275 | E22: 4.13 | F22: 180.405 | H22: 176.3395857 | I22: 180.4979265 | J22: 184.6562672 | K22: 188.8146079 | L22: 192.9729486 | M22: 197.1312893 | N22: 201.28963 | X22: 58.13953488 | Y22: 125 | Z22: 638.3 | AA22: 113.3
B23: 675 | C23: 2016-10-06T10:02:15.267 | D23: 176.275 | E23: 2.71 | F23: 178.985 | H23: 173.3328498 | I23: 177.3460092 | J23: 181.3591685 | K23: 185.3723278 | L23: 189.3854871 | M23: 193.3986464 | N23: 197.4118057 | X23: 69.76744186 | Y23: 150 | Z23: 662.85 | AA23: 137.85
B24: 700 | C24: 2016-10-18T01:06:26.430 | D24: 176.275 | E24: 1.1 | F24: 177.375 | H24: 170.5476505 | I24: 174.4259985 | J24: 178.3043465 | K24: 182.1826945 | L24: 186.0610425 | M24: 189.9393905 | N24: 193.8177385 | X24: 81.39534884 | Y24: 175 | Z24: 687.4 | AA24: 162.4
B25: 725 | C25: 2016-10-29T16:10:37.592 | D25: 175.35 | E25: -0.57 | F25: 174.78 | H25: 167.96107 | I25: 171.7139041 | J25: 175.4667381 | K25: 179.2195722 | L25: 182.9724062 | M25: 186.7252403 | N25: 190.4780743 | X25: 93.02325581 | Y25: 200 | Z25: 711.95 | AA25: 186.95
B26: 750 | C26: 2016-11-10T07:14:48.755 | D26: 175.35 | E26: -1.89 | F26: 173.46 | H26: 165.5532466 | I26: 169.1889343 | J26: 172.824622 | K26: 176.4603097 | L26: 180.0959974 | M26: 183.731685 | N26: 187.3673727 | X26: 104.6511628 | Y26: 225 | Z26: 736.5 | AA26: 211.5
G27: 1 | H27: Enter the minimum selling (pay) weight you want to consider.
G28: 2 | H28: ="Based on a feeding cost of gain of $"&LEFT(H8,6)&"/cwt." -> Based on a feeding cost of gain of $85/cwt.
Z29: Adj.
C30: Expected sale date | D30: Relevant futures price | E30: Expected basis | F30: Expected cash price | H30: Feeding Cost of Gain ($/cwt) | Z30: Selling | AA30: Adj.
B31: Selling | H31: =I31-$N10 -> 70 | I31: =J31-$N10 -> 75 | J31: =K31-$N10 -> 80 | K31: =H8 -> 85 | L31: =K31+$N10 -> 90 | M31: =L31+$N10 -> 95 | N31: =M31+$N10 -> 100 | X31: Days | Y31: Gain | Z31: Weight | AA31: Gain
B32: Weight | H32: Breakeven Selling Price ($/cwt)1
B33: =B20 -> 600 | C33: =H$6+X33 -> 2016-09-01T12:49:41.778 | D33: =D20 -> 176.275 | E33: 8.1 | F33: =D33+E33 -> 184.375 | H33: =IF($B33<=$H$4," N/A",(($H$5/100*$H$4)*(1+$H$9*$X33/365)+((H$31/100*$AA33)+$H$11)*(1+$H$9/2*$X33/365)+$H$12)/$Z33*100) -> 194.9435452 | I33: 195.4901741 | J33: 196.0368031 | K33: 196.583432 | L33: 197.1300609 | M33: 197.6766898 | N33: 198.2233187 | X33: =X20 -> 34.88372093 | Y33: =B33-H$4 -> 75 | Z33: =B33*(1-H$10) -> 589.2 | AA33: =Z33-H$4 -> 64.2
B34: 625 | C34: 2016-09-13T03:53:52.941 | D34: 176.275 | E34: 5.91 | F34: =D34+E34 -> 182.185 | H34: 190.3611357 | I34: 191.0873746 | J34: 191.8136135 | K34: 192.5398524 | L34: 193.2660913 | M34: 193.9923302 | N34: 194.7185692 | X34: 46.51162791 | Y34: 100 | Z34: 613.75 | AA34: 88.75
B35: 650 | C35: 2016-09-24T18:58:04.104 | D35: 176.275 | E35: 4.13 | F35: 180.405 | H35: 186.137223 | I35: 187.0296846 | J35: 187.9221463 | K35: 188.8146079 | L35: 189.7070695 | M35: 190.5995311 | N35: 191.4919927 | X35: 58.13953488 | Y35: 125 | Z35: 638.3 | AA35: 113.3
B36: 675 | C36: 2016-10-06T10:02:15.267 | D36: 176.275 | E36: 2.71 | F36: 178.985 | H36: 182.2319743 | I36: 183.2787588 | J36: 184.3255433 | K36: 185.3723278 | L36: 186.4191123 | M36: 187.4658968 | N36: 188.5126813 | X36: 69.76744186 | Y36: 150 | Z36: 662.85 | AA36: 137.85
B37: 700 | C37: 2016-10-18T01:06:26.430 | D37: 176.275 | E37: 1.1 | F37: 177.375 | H37: 178.6112469 | I37: 179.8017295 | J37: 180.992212 | K37: 182.1826945 | L37: 183.373177 | M37: 184.5636595 | N37: 185.7541421 | X37: 81.39534884 | Y37: 175 | Z37: 687.4 | AA37: 162.4
B38: 725 | C38: 2016-10-29T16:10:37.592 | D38: 175.35 | E38: -0.57 | F38: 174.78 | H38: 175.2456077 | I38: 176.5702625 | J38: 177.8949173 | K38: 179.2195722 | L38: 180.544227 | M38: 181.8688818 | N38: 183.1935367 | X38: 93.02325581 | Y38: 200 | Z38: 711.95 | AA38: 186.95
B39: 750 | C39: 2016-11-10T07:14:48.755 | D39: 175.35 | E39: -1.89 | F39: 173.46 | H39: 172.1095477 | I39: 173.5598017 | J39: 175.0100557 | K39: 176.4603097 | L39: 177.9105637 | M39: 179.3608176 | N39: 180.8110716 | X39: 104.6511628 | Y39: 225 | Z39: 736.5 | AA39: 211.5
G40: 1 | H40: ="Based on a purchase price of $"&LEFT(H5,5)&"/cwt." -> Based on a purchase price of $205/cwt.
H42: Breakeven Selling Price is below Expected cash price (expect positive returns) | X42: Footnotes for "Buy" sheet because they will not work in that sheet for some reason
H43: Breakeven Selling Price is above Expected cash price (expect negative returns) | X43: ="Based on a feeding cost of gain of $"&LEFT(Buy!H8,6)&"/cwt." -> Based on a feeding cost of gain of $85/cwt.
X44: ="Based on a selling price of $"&LEFT(Buy!H5,5)&"/cwt." -> Based on a selling price of $175/cwt.

Sheet Buy
B2: Breakeven Buying Price Worksheet | H2: (Blue values in shaded cells are inputs to be entered)
B4: Selling weight after shrink (pay-weight) | H4: 725
B5: Expected selling price ($/cwt) | H5: 175 | N5: =IF(H5<1," Enter selling price as $/Cwt.!"," ") -> 
B6: Purchase date (mm/dd/yy) | H6: =NOW() -> 2016-07-28T15:37:08.290
B7: Average Daily Gain (pay-to-pay) | H7: 2.15 | K7: Increments to use in tables below
B8: Feeding cost of gain ($/cwt) | H8: 85 | K8: Purchase Weight (lbs) | N8: 25
B9: Interest rate on feeder | H9: 0.07 | K9: Selling Price ($/cwt) | N9: 5
B10: Percent death loss* | H10: 0.018 | K10: Feeding Cost of Gain ($/cwt) | N10: 5
B11: Costs per head (trucking, vaccines, backgrounding, etc.)** | H11: 20
B12: Desired profit per head | H12: 0
B13: * Enter ONLY if death loss is NOT included in feeding cost of gain, otherwise enter zero.
B14: ** Do not enter any costs included in feeding cost of gain.
C17: Expected sale date | D17: Relevant futures price | E17: Expected basis* | F17: Expected cash price | H17: Selling Price ($/cwt) | Z17: Adj.
B18: Purchase | H18: =I18-$N9 -> 160 | I18: =J18-$N9 -> 165 | J18: =K18-$N9 -> 170 | K18: =H5 -> 175 | L18: =K18+$N9 -> 180 | M18: =L18+$N9 -> 185 | N18: =M18+$N9 -> 190 | X18: Days | Y18: Gain | Z18: Gain
B19: Weight1 | H19: Breakeven Purchase Price ($/cwt)2
B20: =H4-125 -> 600 | C20: =H$6+X20 -> 2016-09-24T18:58:04.104 | D20: 176.275 | E20: 9.03 | F20: =D20+E20 -> 185.305 | H20: =IF($B20>=$H$4," N/A",(H$18*($H$4*(1-$H$10))/100-(($H$8/100*$Z20)+$H$11)*(1+$H$9/2*$X20/365)-$H$12)/($B20/100*(1+$H$9*$X20/365))) -> 168.672707 | I20: 174.5402008 | J20: 180.4076946 | K20: 186.2751884 | L20: 192.1426823 | M20: 198.0101761 | N20: 203.8776699 | X20: =($H$4-B20)/$H$7 -> 58.13953488 | Y20: =H$4-B20 -> 125 | Z20: =H$4*(1-H$10)-B20 -> 111.95
B21: =B20-N$8 -> 575 | C21: 2016-10-06T10:02:15.267 | D21: 176.275 | E21: 12.52 | F21: =D21+E21 -> 188.795 | H21: =IF($B21>=$H$4," N/A",(H$18*($H$4*(1-$H$10))/100-(($H$8/100*$Z21)+$H$11)*(1+$H$9/2*$X21/365)-$H$12)/($B21/100*(1+$H$9*$X21/365))) -> 171.9256991 | I21: 178.0348281 | J21: 184.1439572 | K21: 190.2530863 | L21: 196.3622153 | M21: 202.4713444 | N21: 208.5804735 | X21: 69.76744186 | Y21: 150 | Z21: 136.95
B22: 550 | C22: 2016-10-18T01:06:26.430 | D22: 176.275 | E22: 16.69 | F22: 192.965 | H22: 175.4846686 | I22: 181.8574616 | J22: 188.2302546 | K22: 194.6030476 | L22: 200.9758406 | M22: 207.3486336 | N22: 213.7214266 | X22: 81.39534884 | Y22: 175 | Z22: 161.95
B23: 525 | C23: 2016-10-29T16:10:37.592 | D23: 175.35 | E23: 21.29 | F23: 196.64 | H23: 179.393256 | I23: 186.0548881 | J23: 192.7165203 | K23: 199.3781525 | L23: 206.0397846 | M23: 212.7014168 | N23: 219.363049 | X23: 93.02325581 | Y23: 200 | Z23: 186.95
B24: 500 | C24: 2016-11-10T07:14:48.755 | D24: 175.35 | E24: 26.58 | F24: 201.93 | H24: 183.7038305 | I24: 190.6832529 | J24: 197.6626753 | K24: 204.6420977 | L24: 211.6215201 | M24: 218.6009425 | N24: 225.5803649 | X24: 104.6511628 | Y24: 225 | Z24: 211.95
B25: 475 | C25: 2016-11-21T22:18:59.918 | D25: 175.35 | E25: 18.74 | F25: 194.09 | H25: 188.4797871 | I25: 195.8105216 | J25: 203.141256 | K25: 210.4719905 | L25: 217.8027249 | M25: 225.1334593 | N25: 232.4641938 | X25: 116.2790698 | Y25: 250 | Z25: 236.95
B26: =B25-N$8 -> 450 | C26: 2016-12-03T13:23:11.081 | D26: 175.35 | E26: 37.99 | F26: 213.34 | H26: 193.7986093 | I26: 201.5197641 | J26: 209.2409189 | K26: 216.9620737 | L26: 224.6832286 | M26: 232.4043834 | N26: 240.1255382 | X26: 127.9069767 | Y26: 275 | Z26: 261.95
G27: 1 | H27: Enter the maximum purchase weight you are willing to consider.
G28: 2 | H28: =Sell!X43 -> Based on a feeding cost of gain of $85/cwt.
C30: Expected sale date | D30: Relevant futures price | E30: Expected basis | F30: Expected cash price | H30: Feeding Cost of Gain ($/cwt) | Z30: Adj.
B31: Purchase | H31: =I31-$N10 -> 70 | I31: =J31-$N10 -> 75 | J31: =K31-$N10 -> 80 | K31: =H8 -> 85 | L31: =K31+$N10 -> 90 | M31: =L31+$N10 -> 95 | N31: =M31+$N10 -> 100 | X31: Days | Y31: Gain | Z31: Gain
B32: Weight | H32: Breakeven Purchase Price ($/cwt)1
B33: =B20 -> 600 | C33: =H$6+X33 -> 2016-09-24T18:58:04.104 | D33: =D20 -> 176.275 | E33: =E20 -> 9.03 | F33: =D33+E33 -> 185.305 | H33: =IF($B33>=$H$4," N/A",($H$5*($H$4*(1-$H$10))/100-((H$31/100*$Z33)+$H$11)*(1+$H$9/2*$X33/365)-$H$12)/($B33/100*(1+$H$9*$X33/365))) -> 189.0585074 | I33: 188.1307344 | J33: 187.2029614 | K33: 186.2751884 | L33: 185.3474155 | M33: 184.4196425 | N33: 183.4918695 | X33: =X20 -> 58.13953488 | Y33: =H$4-B33 -> 125 | Z33: =H$4*(1-H$10)-B33 -> 111.95
B34: 575 | C34: 2016-10-06T10:02:15.267 | D34: =D21 -> 176.275 | E34: 12.52 | F34: =D34+E34 -> 188.795 | H34: 193.8021097 | I34: 192.6191019 | J34: 191.4360941 | K34: 190.2530863 | L34: 189.0700785 | M34: 187.8870707 | N34: 186.7040628 | X34: 69.76744186 | Y34: 150 | Z34: 136.95
B35: 550 | C35: 2016-10-18T01:06:26.430 | D35: 176.275 | E35: 16.69 | F35: 192.965 | H35: 198.9859222 | I35: 197.524964 | J35: 196.0640058 | K35: 194.6030476 | L35: 193.1420894 | M35: 191.6811312 | N35: 190.2201729 | X35: 81.39534884 | Y35: 175 | Z35: 161.95
B36: 525 | C36: 2016-10-29T16:10:37.592 | D36: 175.35 | E36: 21.29 | F36: 196.64 | H36: 204.6727704 | I36: 202.9078978 | J36: 201.1430251 | K36: 199.3781525 | L36: 197.6132798 | M36: 195.8484072 | N36: 194.0835345 | X36: 93.02325581 | Y36: 200 | Z36: 186.95
B37: 500 | C37: 2016-11-10T07:14:48.755 | D37: 175.35 | E37: 26.58 | F37: 201.93 | H37: 210.9380453 | I37: 208.8393961 | J37: 206.7407469 | K37: 204.6420977 | L37: 202.5434485 | M37: 200.4447993 | N37: 198.3461501 | X37: 104.6511628 | Y37: 225 | Z37: 211.95
B38: 475 | C38: 2016-11-21T22:18:59.918 | D38: 175.35 | E38: 18.74 | F38: 194.09 | H38: 217.8730103 | I38: 215.4060037 | J38: 212.9389971 | K38: 210.4719905 | L38: 208.0049838 | M38: 205.5379772 | N38: 203.0709706 | X38: 116.2790698 | Y38: 250 | Z38: 236.95
B39: 450 | C39: 2016-12-03T13:23:11.081 | D39: 175.35 | E39: 37.99 | F39: 213.34 | H39: 225.5892102 | I39: 222.713498 | J39: 219.8377859 | K39: 216.9620737 | L39: 214.0863616 | M39: 211.2106494 | N39: 208.3349373 | X39: 127.9069767 | Y39: 275 | Z39: 261.95
G40: 1 | H40: =Sell!X44 -> Based on a selling price of $175/cwt.
H42: Breakeven Buying Price is above Expected cash price (expect positive returns)
H43: Breakeven Buying Price is below Expected cash price (expect negative returns)
